Cogmind - Beta 9.6 @@@ ROGUE MODE // 2020.08.29 @ 02:26:41 Player: scoobysnack1 Result: Destroyed by Y-45 Defender with Beam Rifle Performance ------------- Evolutions (1) 500 Regions Visited (3) 600 Robots Destroyed (11) 55 Value Destroyed (262) 262 Prototype IDs (2) 40 Alien Tech Used (0) 0 Bonus (0) 0 TOTAL SCORE: 1457 Bonus ------- None Cogmind --------- Core Integrity 0/400 Matter 300/300 Energy 100/100 System Corruption 0% Temperature Cool (9) Movement Core (100) Ox1 Location -9/Materials Parts ------- > --- POWER (1) -------- (None) > --- PROPULSION (3) --- (None) > --- UTILITY (3) ------ Improved Heat Sink Small Storage Unit Targeting Computer > --- WEAPON (2) ------- (None) > --- INVENTORY (6) ---- Field Recycling Unit (0) Peak State ------------ > --- POWER ------------ Ion Engine > --- PROPULSION ------- Aluminum Leg Aluminum Leg Aluminum Leg > --- UTILITY ---------- Heat Sink Small Storage Unit Targeting Computer > --- WEAPON ----------- Assault Rifle > --- INVENTORY -------- Aluminum Leg Improved Heat Sink Field Recycling Unit [Rating: 8] Favorites ----------- Power Ion Engine Engine Ion Engine Propulsion Aluminum Leg Leg Aluminum Leg Utility Small Storage Unit Device Heat Sink Storage Small Storage Unit Processor Targeting Computer Protection Propulsion Shielding Weapon Small Laser Energy Gun Small Laser Ballistic Gun Assault Rifle Build | -11 -10 -10 -9 ------- Run | Scr Mat Min Mat Slots Evolved 2 | . . . 2 Power . | . . . . Propulsion 1 | . . . 1 Utility 1 | . . . 1 Weapon . | . . . . Parts Attached 25 | 7 5 6 7 Power 5 | 2 . 1 2 Engine 5 | 2 . 1 2 Core . | . . . . Reactor . | . . . . Propulsion 7 | 2 . 3 2 Treads . | . . . . Leg 7 | 2 . 3 2 Wheel . | . . . . Hover . | . . . . Flight . | . . . . Utility 5 | 1 2 . 2 Device 2 | . 1 . 1 Storage 1 | 1 . . . Processor 1 | . . . 1 Hackware . | . . . . Protection 1 | . 1 . . Artifact . | . . . . Weapon 8 | 2 3 2 1 Energy Gun 6 | 1 3 2 . Energy Cannon . | . . . . Ballistic Gun 2 | 1 . . 1 Ballistic Cannon . | . . . . Launcher . | . . . . Special Weapon . | . . . . Impact Weapon . | . . . . Slashing Weapon . | . . . . Piercing Weapon . | . . . . Special Melee Weapon . | . . . . Unidentified Prototypes . | . . . . Parts Lost 14 | . . 3 11 Power 3 | . . . 3 Propulsion 5 | . . 1 4 Utility 1 | . . . 1 Weapon 5 | . . 2 3 Highest Loss Streak 8 | . . 2 8 Average Slot Usage (%) 81 | . 96 88 66 Engine 12 | . 14 14 9 Leg 21 | . 28 18 19 Device 9 | . 4 14 10 Storage 12 | . 14 14 11 Processor 2 | . . . 5 Protection 1 | . 6 . . Energy Gun 19 | . 26 26 8 Ballistic Gun 1 | . 1 . 2 Naked Turns . | . . . . Heaviest Build 14 | 12 14 14 14 Greatest Support 30 | 20 20 20 30 Greatest Overweight (x) 3 | 3 . 1 3 Average Overweight (x) . | . . . . Largest Inventory Capacity 6 | 6 6 6 6 Average Capacity 5 | 5 6 6 6 Most Carried 6 | 2 4 5 6 Average Carried 3 | 1 3 3 3 Final Capacity 6 | 6 6 6 6 Final Carried 5 | 2 4 5 1 Class Distribution -------------------- 83% | Mutant 16% | Scavenger-Mutant Dominant Class ---------------- Mutant | -10/Materials Mutant | -10/Mines Mutant | -9/Materials Resources | -11 -10 -10 -9 ----------- Run | Scr Mat Min Mat Matter Collected 424 | 279 50 50 45 Remotely . | . . . . Salvage Created 481 | 89 86 173 133 Parts 24 | 4 9 8 3 Haulers Intercepted 1 | . . . 1 Recyclers Shooed 1 | . . 1 . Parts Field Recycled . | . . . . Retrieved Matter . | . . . . Parts Self-Destructed . | . . . . Prevented . | . . . . Kills | -11 -10 -10 -9 ------- Run | Scr Mat Min Mat Combat Hostiles Destroyed 6 | . 2 2 2 Melee 1 | . . . 1 Guns 5 | . 2 2 1 Classes Destroyed 5 | 1 2 1 1 Builder 1 | . . 1 . Hauler 1 | . . . 1 Recycler 2 | 1 . 1 . Watcher 1 | . 1 . . Grunt 6 | . 2 2 2 Best Kill Streak 3 | 1 3 2 1 Combat Bots Only 2 | . 2 1 1 Max Kills in Single Turn 1 | 1 1 1 1 Gunslinging . | . . . . Exploded . | . . . . Melee 1 | . . . 1 Uniques/NPCs Destroyed . | . . . . Combat | -11 -10 -10 -9 -------- Run | Scr Mat Min Mat Damage Taken 1609 | . 337 169 1103 Core 491 | . 67 21 403 Absorbed by Shields . | . . . . Core Remaining (%) 82 | 100 . 64 . Volleys Fired 45 | 3 10 19 13 Largest 2 | 2 2 2 2 Hottest 90 | 60 80 90 90 Shots Fired 72 | 6 19 26 21 Gun 72 | 6 19 26 21 Cannon . | . . . . Launcher . | . . . . Special . | . . . . Kinetic 12 | 3 . . 9 Thermal 39 | 3 . 24 12 Explosive . | . . . . Electromagnetic 21 | . 19 2 . Robot Hit Streak 9 | 3 5 8 9 Robot Miss Streak 3 | 2 3 3 3 Penetration Max . | . . . . Secondary Targets 1 | . 1 . . Max Gunslinging Chain 1 | . 1 . . Shots Hit Robots 46 | 3 11 18 14 Core Hits 23 | 2 6 9 6 Critical Hits . | . . . . Critical Kills . | . . . . Critical Parts Destroyed . | . . . . Melee Attacks . | . . . . Impact . | . . . . Slashing . | . . . . Piercing . | . . . . Sneak Attacks . | . . . . Combat Hostiles . | . . . . Follow-up Attacks . | . . . . Damage Inflicted 660 | 49 184 210 217 Guns 611 | 49 140 210 212 Cannons . | . . . . Explosions 44 | . 44 . . Melee . | . . . . Ramming 5 | . . . 5 Kinetic 129 | 25 . . 104 Thermal 386 | 24 44 210 108 Explosive . | . . . . Electromagnetic 140 | . 140 . . Impact . | . . . . Slashing . | . . . . Piercing . | . . . . Highest Corruption . | . . . . Average Corruption . | . . . . Corruption Purged . | . . . . Overload Shots . | . . . . Overflow Damage . | . . . . Projectiles . | . . . . Explosions . | . . . . Melee . | . . . . Knockbacks . | . . . . Impact . | . . . . Kinetic . | . . . . Secondary . | . . . . Self-Inflicted Damage 12 | . 10 . 2 Shots 1 | . 1 . . Rammed 2 | . . . 2 Targets Rammed 2 | . . . 2 Kicked . | . . . . Crushed . | . . . . Highest Temperature 297 | . 297 27 . Average Temperature 109 | . 145 17 . Received Heat Transfer 654 | . 186 75 393 Effects 1 | . 1 . . Interference 1 | . 1 . . Siege Activations . | . . . . Robots Corrupted . | . . . . Combat Hostiles . | . . . . Parts Fried . | . . . . Impact Corruptions . | . . . . Robots Melted . | . . . . Combat Hostiles . | . . . . Parts Melted 2 | . . 1 1 Heat Transferred 919 | 50 50 522 297 Parts Sabotaged . | . . . . Parts Stolen . | . . . . Parts Stripped . | . . . . Power Chain Reactions 1 | . 1 . . Missiles Intercepted . | . . . . Alert | -11 -10 -10 -9 ------- Run | Scr Mat Min Mat Peak Influence 100 | 5 65 100 86 Average Influence 32 | 4 40 63 42 Maximum Alert Level . | . . . . Low Security (%) 100 | 100 100 100 100 Level 1 . | . . . . Level 2 . | . . . . Level 3 . | . . . . Level 4 . | . . . . Level 5 . | . . . . High Security . | . . . . Max Security . | . . . . Squads Dispatched 1 | . . . 1 Investigation 1 | . . . 1 Extermination . | . . . . Reinforcement . | . . . . Assault . | . . . . Garrison . | . . . . Intercept . | . . . . Construction Impeded . | . . . . Haulers Reinforced . | . . . . Stealth | -11 -10 -10 -9 --------- Run | Scr Mat Min Mat Distress Signals 3 | . 2 . 1 Communications Jammed . | . . . . Distress Signals . | . . . . Times Spotted 25 | . 10 7 8 Peak Tracking Total 5 | . 4 3 5 Tactical Retreats 3 | . . 3 . Traps | -11 -10 -10 -9 ------- Run | Scr Mat Min Mat Traps Triggered 1 | . . . 1 Indirectly . | . . . . Trap Hack Attempts . | . . . . Triggered . | . . . . Disarmed . | . . . . Reprogrammed . | . . . . Reused . | . . . . Traps Extracted . | . . . . Installed . | . . . . Triggered 1 | . 1 . . Machines | -11 -10 -10 -9 ---------- Run | Scr Mat Min Mat Machines Disabled 1 | . . 1 . Max in Single Turn 1 | . . 1 . Machines Sabotaged . | . . . . Garrisons Compromised . | . . . . Overloaded Fab Kills . | . . . . Fab Network Shutdowns . | . . . . Hacking | -11 -10 -10 -9 --------- Run | Scr Mat Min Mat Machines Accessed 2 | . 1 . 1 Terminals 2 | . 1 . 1 Fabricators . | . . . . Repair Stations . | . . . . Recycling Units . | . . . . Scanalyzers . | . . . . Garrison Access . | . . . . Total Hacks 5 | . 2 . 3 Successful 4 | . 1 . 3 Failed 1 | . 1 . . Catastrophic . | . . . . Database Lockouts . | . . . . Manual . | . . . . Terminals 5 | . 2 . 3 Fabricators . | . . . . Repair Stations . | . . . . Recycling Units . | . . . . Scanalyzers . | . . . . Garrison Access . | . . . . Terminal Hacks 4 | . 1 . 3 Record 1 | . 1 . . Prototype ID Bank 1 | . . . 1 Branch Access Points 1 | . . . 1 Zone Layout 1 | . . . 1 Fabricator Hacks . | . . . . Repair Station Hacks . | . . . . Recycling Unit Hacks . | . . . . Scanalyzer . | . . . . Garrison Access Hacks . | . . . . Unauthorized Hacks . | . . . . Terminals . | . . . . Fabricators . | . . . . Repair Stations . | . . . . Recycling Units . | . . . . Scanalyzers . | . . . . Garrison Access . | . . . . Data Cores Recovered . | . . . . Used . | . . . . Hacking Detections 2 | . 1 . 1 Full Trace Events . | . . . . Feedback Events . | . . . . Feedback Blocked . | . . . . Robot Schematics Acquired . | . . . . Robots Built . | . . . . Matter . | . . . . Time . | . . . . Total Robot Build Rating . | . . . . Part Schematics Acquired . | . . . . Parts Built . | . . . . Matter . | . . . . Time . | . . . . Total Part Build Rating . | . . . . Parts Repaired . | . . . . Time . | . . . . Parts Recycled . | . . . . Recycled Matter . | . . . . Retrieved Matter . | . . . . Retrieved Components . | . . . . Parts Scanalyzed . | . . . . Part Schematics Acquired . | . . . . Parts Damaged . | . . . . Bothacking | -11 -10 -10 -9 ------------ Run | Scr Mat Min Mat Used RIF Installer . | . . . . Robots Hacked . | . . . . Non-combat . | . . . . Combat . | . . . . Robot Hacks Applied . | . . . . Relay Couplers Released . | . . . . Robots Rewired . | . . . . Allies Hacked . | . . . . Hacks Repelled . | . . . . Allies | -11 -10 -10 -9 -------- Run | Scr Mat Min Mat Total Allies . | . . . . Largest Group . | . . . . Highest-Rated Group . | . . . . Highest-Rated Ally . | . . . . Total Orders . | . . . . Ally Attacks . | . . . . Total Damage . | . . . . Kills . | . . . . Allies Corrupted . | . . . . Allies Melted . | . . . . Intel | -11 -10 -10 -9 ------- Run | Scr Mat Min Mat Robot Analysis Total . | . . . . Derelict Logs Recovered 1 | . . 1 . Drone Launches . | . . . . Drone Recoveries . | . . . . Exploration | -11 -10 -10 -9 ------------- Run | Scr Mat Min Mat Turns Passed 944 | 355 162 194 233 Spaces Moved 485 | 155 97 95 138 Core 20 | 10 . . 10 Treads . | . . . . Legs 465 | 145 97 95 128 Wheels . | . . . . Hover . | . . . . Flight . | . . . . Fastest Speed 50 | 50 120 120 100 Average Speed 123 | 121 120 136 120 Slowest Speed 200 | 200 120 150 200 Overloaded Moves . | . . . . Propulsion Burnouts . | . . . . Robots Hopped . | . . . . Cave-ins Triggered . | . . . . Exploration Rate (%) 17 | 8 21 29 13 Regions Visited 3 Branch Regions 1 Pre-discovered Areas . | . . . . Known Exits Taken . | . . . . Unknown Exits Taken 3 | 1 1 1 . Scrap Searched . | . . . . Spaces Dug . | . . . . Terrain Destroyed 3 | . 3 . . Melee . | . . . . Projectile . | . . . . AOE 3 | . 3 . . Actions | -11 -10 -10 -9 --------- Run | Scr Mat Min Mat Total 749 | 313 122 131 183 Wait 187 | 148 6 11 22 Move 482 | 154 96 94 138 Hop . | . . . . Pick Up 6 | 1 3 1 1 Fast Attach 10 | 6 2 . 2 Attach 8 | . . 3 5 Detach . | . . . . Swap 7 | 1 3 3 . Drop 2 | . 2 . . Fire 45 | 3 10 19 13 Melee . | . . . . Ram . | . . . . Kick 2 | . . . 2 Crush . | . . . . Escape Stasis . | . . . . Rewire . | . . . . Trap . | . . . . Miscellaneous . | . . . . Route ------- -11/Scrapyard -10/Materials -10/Mines (discovered 2 exits: *Mat x2) -9/Materials (discovered 1 exit: Min) History --------- Turn | Location | Event 20 | -11/Scrapyard | Discovered new exit (range 15) 356 | -11/Scrapyard | Entered Materials 357 | -10/Materials | Build established: Mutant 457 | -10/Materials | Met 8R-AWN 510 | -10/Materials | Discovered new exit (range 8) 518 | -10/Materials | Entered Mines 519 | -10/Mines | Followed 8R-AWN into the Mines 534 | -10/Mines | Discovered new exit (range 10) 584 | -10/Mines | Discovered new exit (range 9) 706 | -10/Mines | Learned Materials garrison access intel 712 | -10/Mines | Entered Materials 712 | -9/Materials | Evolved 2 slots: Propulsion x1, Utility x1 883 | -9/Materials | Core integrity fell below 50% 898 | -9/Materials | Identified exit to Mines 900 | -9/Materials | Lost 8 parts (2p3n1u2w) 943 | -9/Materials | Core integrity fell below 20% 945 | -9/Materials | Destroyed by Y-45 Defender with Beam Rifle Last Messages --------------- Connecting with Terminal... Current location identified: Materials >>Prototypes Downloading prototype IDs... Imp. EM Shotgun Enh. Autogun >>Layout(Zone) Retrieving Zone 2V layout... Downloaded map data. >>Access(Branch) Found 1 branch access point: (82,10) Mines Map updated. Slammed into G-34 Mercenary. G-34 Mercenary destroyed. [Achievement: Fist Fight] Acquired 45 matter. Slammed into Y-45 Defender. Aluminum Leg destroyed. Ion Engine destroyed. Map ----- +----------------------------------------------------+ | | | | | | | | | | | | | | | | | | | | | ??????????????????????????????????????????? | | ??????????????????????????????????????????? | | ??????????????????????????????????????????? | | ?????????????????????######???????????????? | | ??????################ #???????????????? | | ??????# #???????????????? | | ??????# #???????????????? | | ??????###+####+####### #???????????????? | | ??????# # T ### ##???????????????? | | ??????# # g #?# #????????????????? | | ??????# # #?# #????????????????? | | ??????# # #?#% ########?????????? | | ??????# # #?# # #?????????? | | ??????# # """ #?# #! """ #?????????? | | ??????######## """ !#?# # """ #?????????? | | ?????????????# """@ #?# / """ #?????????? | | ?????????????# Y #?# # #?????????? | | ?????????????# """ #?# # ] #?????????? | | ?????????????# """ #?# ########?????????? | | ??????######## """ ### #????????????????? | | ??????# # YY ## #????????????????? | | ??????# ########## #????????????????? | | ??????# """ + #????????????????? | | ??????# """ # ########+#####?????????????? | | ??????# """ # #??# #?????????????? | | ??????# ?# #??# #?????????????? | | ??????######?# #??# !! #?????????????? | | ?????????????# #??# ! #?????????????? | | ?????????????# #??# #?????????????? | | ?????????????# #??# #?????????????? | | ?????????????# #??# #?????????????? | | ?????????????# #??# #?????????????? | | ?????????????# #??###########?????????????? | | ?????????????#!#??????????????????????????? | | ?????????????#!#??????????????????????????? | | ?????????????#!#??????????????????????????? | | ?????????????#!#??????????????????????????? | | ?????????????#%#??????????????????????????? | | ?????????????#!#??????????????????????????? | | ?????????????#!#??????????????????????????? | +----------------------------------------------------+ Best States ------------- Heat Dissipation 42 Energy Generation 10 Energy Capacity 250 Matter Stores 300 Matter Capacity 300 Sight Range 16 Terrain Scan Density 10 Propulsion Shielding 33 Evasion (%) 40 Targeting Accuracy 5 Item Schematics ----------------- None Robot Schematics ------------------ None Fabricated ------------ Nothing Alien Tech Used ----------------- None Achievements -------------- Fist Fight Challenges ------------ None Game ------ Seed DeepSupersonicArray Manual? 0 Play Time 00:23:59 Cumulative 3.9 hours Start 2020.08.29 @ 01:58:07 End 2020.08.29 @ 02:26:41 Sessions 1 Manual Loads 0 Difficulty Rogue Special Mode None Game No. 4 Rogue 4 Adventurer 0 Explorer 0 Win Type - Total 0 Types 0/0/0/0/0/0/0 Lore% 2 Gallery% 4 Achievement% 4 Wizard Run 0 Options --------- ASCII 0 Keyboard 0 Movement Mouse Keybinds 0 Fullscreen 1 Font 18/SmallcapsGlow Map View 76x50 Tactical HUD 0 Map Filters NONE Filters NONE Steam 1 RUN: 940cbb73-9d03-48e8-ac81-20d3725a44e2